[Event "Seniors-LEM-65 Sachsen-Anhalt 2024"]
[Site "Magdeburg"]
[Date "2024.07.03"]
[Round "3.12"]
[White "Poetke, Dan-Peter"]
[Black "Andersen, Knut"]
[Result "1/2-1/2"]
[ECO "A43"]
[WhiteElo "1968"]
[BlackElo "2104"]
[Annotator "RC"]
[PlyCount "39"]
[EventDate "2024.06.25"]
[EventType "swiss"]
[EventCountry "GER"]
[SourceTitle "playchess.com"]
[Source "ChessBase"]
[SourceQuality "1"]
[TimeControl "40/5400+30:1800+30"]

1. d4 {[%emt 0:00:01]} Nf6 {[%emt 0:00:08]} 2. Nf3 {[%emt 0:00:04]} c5 {[%emt 0:00:09]} 3. d5 {[%emt 0:00:56]} e6 {[%emt 0:00:37]} 4. Nc3 {[%emt 0:00:11]} exd5 {[%emt 0:02:33]} 5. Nxd5 {[%emt 0:00:38]} Nxd5 {[%emt 0:01:31]} 6. Qxd5 {[%emt 0:00:03]} Nc6 {[%emt 0:00:08]} 7. e4 {[%emt 0:06:46]} d6 {[%emt 0:00:53]} 8. Ng5 {[%emt 0:08:29]} Qf6 {[%emt 0:00:23]} 9. Bc4 {[%emt 0:03:22]} Be7 {[%emt 0:11:57]} 10. Qxf7+ {[%emt 0:04:20]} Qxf7 {[%emt 0:04:12]} 11. Bxf7+ {[%emt 0:00:57]} Kf8 {[%emt 0:00:39]} 12. Bb3 {[%emt 0:03:20]} Nd4 {[%emt 0:01:59]} 13. c3 {[%emt 0:03:22]} Nxb3 {[%emt 0:00:30]} 14. axb3 {[%emt 0:00:01]} h6 {[%emt 0:00:44]} 15. Nf3 {[%emt 0:00:23]} Be6 {[%emt 0:00:32]} 16. c4 {[%emt 0:03:53]} Bf6 {[%emt 1:11:35]} 17. Bf4 {[%emt 0:03:29]} Ke7 {[%emt 0:00:00]} 18. e5 {[%emt 0:02:04]} dxe5 {[%emt 0:00:00]} 19. Bxe5 {[%emt 0:00:11]} Bg4 {[%emt 0:00:00]} 20. Kd2 {[%emt 0:10:59]} 1/2-1/2

[Event "Seniors-LEM-65 Sachsen-Anhalt 2024"]
[Site "Magdeburg"]
[Date "2024.07.03"]
[Round "3.13"]
[White "Mikolajewski, Armin"]
[Black "Waagener, Ulrich"]
[Result "0-1"]
[ECO "D46"]
[WhiteElo "1961"]
[BlackElo "2080"]
[Annotator "RC"]
[PlyCount "48"]
[EventDate "2024.06.25"]
[EventType "swiss"]
[EventCountry "GER"]
[SourceTitle "playchess.com"]
[Source "ChessBase"]
[SourceQuality "1"]
[TimeControl "40/5400+30:1800+30"]

1. d4 {[%emt 0:00:08]} d5 {[%emt 0:00:29]} 2. c4 {[%emt 0:00:26]} c6 {[%emt 0:00:50]} 3. e3 {[%emt 0:00:50]} a6 {[%emt 0:02:10]} 4. Nf3 {[%emt 0:06:12]} Nf6 {[%emt 0:01:25]} 5. Nc3 {[%emt 0:01:55]} Nbd7 {[%emt 0:07:50]} 6. b3 {[%emt 0:08:15]} e6 {[%emt 0:00:29]} 7. Bd3 {[%emt 0:00:33]} Bd6 {[%emt 0:02:41]} 8. O-O {[%emt 0:04:34]} e5 {[%emt 0:02:49]} 9. cxd5 {[%emt 0:02:46]} cxd5 {[%emt 0:03:33]} 10. dxe5 {[%emt 0:00:20]} Nxe5 {[%emt 0:02:21]} 11. Be2 {[%emt 0:06:48]} Be6 {[%emt 0:01:16]} 12. h3 {[%emt 0:02:28]} Rc8 {[%emt 0:02:46]} 13. Bb2 {[%emt 0:01:47]} O-O {[%emt 0:01:53]} 14. Rc1 {[%emt 0:11:26]} Ng6 {[%emt 0:02:27]} 15. Ng5 {[%emt 0:04:16]} Bb8 {[%emt 0:03:38]} 16. f4 {[%emt 0:02:39]} Qb6 {[%emt 0:02:15]} 17. Qd2 {[%emt 0:05:11]} Bxf4 {[%emt 0:03:08]} 18. Rxf4 {[%emt 0:00:44]} Nxf4 {[%emt 0:00:11]} 19. Na4 {[%emt 0:00:27]} Rxc1+ {[%emt 0:02:32]} 20. Bxc1 {[%emt 0:00:08]} Nxe2+ {[%emt 0:01:04]} 21. Qxe2 {[%emt 0:00:19]} Qd6 {[%emt 0:08:05]} 22. Bb2 {[%emt 0:05:36]} Ne4 {[%emt 0:03:43]} 23. Nf3 {[%emt 0:04:26]} Rc8 {[%emt 0:02:13]} 24. Nd2 {[%emt 0:08:19]} f6 {[%emt 0:04:17]} 0-1

[Event "Seniors-LEM-65 Sachsen-Anhalt 2024"]
[Site "Magdeburg"]
[Date "2024.07.03"]
[Round "3.14"]
[White "Ruether, Rudolf"]
[Black "Heise, Juergen"]
[Result "1/2-1/2"]
[ECO "D36"]
[WhiteElo "2065"]
[BlackElo "1930"]
[Annotator "RC"]
[PlyCount "38"]
[EventDate "2024.06.25"]
[EventType "swiss"]
[EventCountry "GER"]
[SourceTitle "playchess.com"]
[Source "ChessBase"]
[SourceQuality "1"]
[TimeControl "40/5400+30:1800+30"]

1. d4 {[%emt 0:00:13]} Nf6 {[%emt 0:00:05]} 2. c4 {[%emt 0:00:21]} c6 {[%emt 0:00:06]} 3. Nf3 {[%emt 0:00:37]} e6 {[%emt 0:00:35]} 4. Nc3 {[%emt 0:02:11]} d5 {[%emt 0:00:08]} 5. cxd5 {[%emt 0:00:17]} exd5 {[%emt 0:00:37]} 6. Qc2 {[%emt 0:00:18]} Be7 {[%emt 0:08:07]} 7. Bg5 {[%emt 0:01:27]} Nbd7 {[%emt 0:03:08]} 8. e3 {[%emt 0:00:22]} Nf8 {[%emt 0:04:15]} 9. Bd3 {[%emt 0:01:07]} Bg4 {[%emt 0:03:15]} 10. Ne5 {[%emt 0:04:38]} Bh5 {[%emt 0:00:43]} 11. O-O {[%emt 0:02:13]} N6d7 {[%emt 0:03:51]} 12. Bxe7 {[%emt 0:10:26]} Qxe7 {[%emt 0:00:13]} 13. Nxd7 {[%emt 0:01:32]} Qxd7 {[%emt 0:07:32]} 14. b4 {[%emt 0:01:34]} Bg6 {[%emt 0:01:00]} 15. a4 {[%emt 0:05:42]} Ne6 {[%emt 0:02:09]} 16. Rfc1 {[%emt 0:04:22]} O-O {[%emt 0:04:17]} 17. b5 {[%emt 0:03:33]} Rac8 {[%emt 0:03:58]} 18. Bxg6 {[%emt 0:12:46]} fxg6 {[%emt 0:02:01]} 19. Qb2 {[%emt 0:05:48]} c5 {[%emt 0:02:52]} 1/2-1/2

[Event "Seniors-LEM-65 Sachsen-Anhalt 2024"]
[Site "Magdeburg"]
[Date "2024.07.03"]
[Round "3.15"]
[White "Krien, Hartmut"]
[Black "Krueger, Wolfgang"]
[Result "0-1"]
[ECO "B06"]
[WhiteElo "1928"]
[BlackElo "2054"]
[Annotator "NA RC"]
[PlyCount "78"]
[EventDate "2024.06.25"]
[EventType "swiss"]
[EventCountry "GER"]
[SourceTitle "playchess.com"]
[Source "ChessBase"]
[SourceQuality "1"]
[TimeControl "40/5400+30:1800+30"]

1. e4 {[%emt 0:00:07]} c6 {[%emt 0:00:12]} 2. Nf3 g6 {[%emt 0:00:30]} 3. Bc4 d5 {[%emt 0:00:30]} 4. exd5 cxd5 {[%emt 0:00:30]} 5. Bb3 Bg7 {[%emt 0:00:30]} 6. d4 Bg4 {[%emt 0:00:30]} 7. h3 Bxf3 {[%emt 0:00:30]} 8. Qxf3 e6 {[%emt 0:00:30]} 9. c3 Nc6 {[%emt 0:00:30]} 10. Bf4 Nge7 {[%emt 0:00:30]} 11. Nd2 b5 {[%emt 0:00:30]} 12. O-O O-O {[%emt 0:00:30]} 13. Qe2 b4 {[%emt 0:00:30]} 14. Bg5 Qb6 {[%emt 0:00:30]} 15. a3 bxc3 {[%emt 0:00:30]} 16. bxc3 Nf5 {[%emt 0:00:30]} 17. Ba4 Rfc8 {[%emt 0:00:30]} 18. Rfb1 Qa5 {[%emt 0:00:30]} 19. Qb5 Qxb5 {[%emt 0:00:30]} 20. Bxb5 Na5 {[%emt 0:00:30]} 21. Nb3 Nxb3 {[%emt 0:00:30]} 22. Rxb3 Nd6 {[%emt 0:00:30]} 23. Rab1 h6 {[%emt 0:00:30]} 24. Bd2 Ne4 {[%emt 0:00:30]} 25. Be1 g5 {[%emt 0:00:30]} 26. Ba6 Rc7 {[%emt 0:00:30]} 27. f3 Nxc3 {[%emt 0:00:30]} 28. Rb8+ Rxb8 {[%emt 0:00:30]} 29. Rxb8+ Kh7 {[%emt 0:00:30]} 30. Rb4 f5 {[%emt 0:00:30]} 31. a4 Kg6 {[%emt 0:00:30]} 32. Kf1 Bf8 {[%emt 0:00:30]} 33. Bxc3 Rxc3 {[%emt 0:00:30]} 34. Rb7 Bg7 {[%emt 0:00:30]} 35. Rb4 Rc2 {[%emt 0:00:30]} 36. Be2 Rd2 {[%emt 0:00:30]} 37. Ke1 Rxd4 {[%emt 0:00:30]} 38. Rxd4 Bxd4 {[%emt 0:00:30]} 39. a5 Bc3+ {[%emt 0:00:30]} 0-1

[Event "Seniors-LEM-65 Sachsen-Anhalt 2024"]
[Site "Magdeburg"]
[Date "2024.07.03"]
[Round "3.17"]
[White "Bauer, Burkhard"]
[Black "Jacob, Barbara"]
[Result "1-0"]
[ECO "A10"]
[WhiteElo "2043"]
[BlackElo "1824"]
[Annotator "RC"]
[PlyCount "55"]
[EventDate "2024.06.25"]
[EventType "swiss"]
[EventCountry "GER"]
[SourceTitle "playchess.com"]
[Source "ChessBase"]
[SourceQuality "1"]
[TimeControl "40/5400+30:1800+30"]

1. c4 {[%emt 0:00:07]} e6 {[%emt 0:00:30]} 2. Nc3 {[%emt 0:00:21]} g6 {[%emt 0:00:43]} 3. g3 {[%emt 0:00:14]} Bg7 {[%emt 0:00:21]} 4. Bg2 {[%emt 0:00:22]} Ne7 {[%emt 0:00:24]} 5. Nf3 {[%emt 0:00:35]} O-O {[%emt 0:04:39]} 6. d4 {[%emt 0:02:18]} h6 {[%emt 0:02:02]} 7. Bf4 {[%emt 0:03:34]} d6 {[%emt 0:00:27]} 8. Qd2 {[%emt 0:09:41]} Kh7 {[%emt 0:00:35]} 9. h4 {[%emt 0:00:34]} f6 {[%emt 0:09:56]} 10. e4 {[%emt 0:03:10]} Nbc6 {[%emt 0:06:33]} 11. Be3 {[%emt 0:05:07]} b6 {[%emt 0:14:24]} 12. O-O-O {[%emt 0:01:40]} Bb7 {[%emt 0:00:54]} 13. g4 {[%emt 0:00:21]} a5 {[%emt 0:04:36]} 14. d5 {[%emt 0:19:26]} exd5 {[%emt 0:00:30]} 15. exd5 {[%emt 0:00:19]} Ne5 {[%emt 0:00:11]} 16. Nxe5 {[%emt 0:00:19]} dxe5 {[%emt 0:00:21]} 17. f4 {[%emt 0:00:57]} Qc8 {[%emt 0:11:49]} 18. Bh3 {[%emt 0:00:45]} f5 {[%emt 0:02:15]} 19. Rdg1 {[%emt 0:00:54]} Qd7 {[%emt 0:02:43]} 20. fxe5 {[%emt 0:00:26]} Bxe5 {[%emt 0:02:23]} 21. Bxh6 {[%emt 0:00:47]} Bxc3 {[%emt 0:00:39]} 22. bxc3 {[%emt 0:00:01]} Rf7 {[%emt 0:02:15]} 23. Bg5 {[%emt 0:01:21]} Re8 {[%emt 0:03:23]} 24. h5 {[%emt 0:01:46]} gxh5 {[%emt 0:05:27]} 25. gxf5 {[%emt 0:00:40]} Qd6 {[%emt 0:05:04]} 26. f6 {[%emt 0:01:17]} Ng6 {[%emt 0:01:53]} 27. Bf5 {[%emt 0:00:26]} Bc8 {[%emt 0:00:28]} 28. Rxh5+ {[%emt 0:00:12]} 1-0

[Event "Seniors-LEM-65 Sachsen-Anhalt 2024"]
[Site "Magdeburg"]
[Date "2024.07.03"]
[Round "3.18"]
[White "Schulz, Hans-Werner"]
[Black "Kopp, Peter"]
[Result "1/2-1/2"]
[ECO "A46"]
[WhiteElo "1896"]
[BlackElo "2014"]
[Annotator "RC"]
[PlyCount "73"]
[EventDate "2024.06.25"]
[EventType "swiss"]
[EventCountry "GER"]
[SourceTitle "playchess.com"]
[Source "ChessBase"]
[SourceQuality "1"]
[TimeControl "40/5400+30:1800+30"]

1. d4 {[%emt 0:00:06]} d6 {[%emt 0:00:04]} 2. Nf3 {[%emt 0:00:13]} Nd7 {[%emt 0:00:12]} 3. g3 {[%emt 0:00:44]} Ngf6 {[%emt 0:00:11]} 4. Bg2 {[%emt 0:00:04]} e5 {[%emt 0:00:13]} 5. dxe5 {[%emt 0:00:09]} dxe5 {[%emt 0:00:07]} 6. O-O {[%emt 0:00:39]} Be7 {[%emt 0:00:25]} 7. b3 {[%emt 0:00:38]} c6 {[%emt 0:01:01]} 8. Ba3 {[%emt 0:00:28]} O-O {[%emt 0:01:26]} 9. c4 {[%emt 0:01:23]} Re8 {[%emt 0:01:07]} 10. Bxe7 {[%emt 0:01:08]} Qxe7 {[%emt 0:00:28]} 11. Qc2 {[%emt 0:01:24]} a5 {[%emt 0:02:15]} 12. Nc3 {[%emt 0:00:16]} Nc5 {[%emt 0:01:09]} 13. Rfd1 {[%emt 0:00:50]} g6 {[%emt 0:01:09]} 14. Nd2 {[%emt 0:06:02]} Bf5 {[%emt 0:02:21]} 15. e4 {[%emt 0:00:30]} Bg4 {[%emt 0:00:55]} 16. f3 {[%emt 0:03:06]} Bc8 {[%emt 0:01:54]} 17. Nf1 {[%emt 0:01:59]} Ne6 {[%emt 0:01:35]} 18. Qf2 {[%emt 0:07:25]} Nd4 {[%emt 0:06:07]} 19. Rd2 {[%emt 0:02:31]} Nd7 {[%emt 0:04:59]} 20. Na4 {[%emt 0:01:11]} Nc5 {[%emt 0:01:58]} 21. Nb2 {[%emt 0:03:40]} a4 {[%emt 0:05:21]} 22. b4 {[%emt 0:02:07]} a3 {[%emt 0:00:11]} 23. bxc5 {[%emt 0:01:09]} axb2 {[%emt 0:00:09]} 24. Rxb2 {[%emt 0:00:05]} Qxc5 {[%emt 0:00:19]} 25. Ne3 {[%emt 0:02:59]} Ra3 {[%emt 0:02:59]} 26. Re1 {[%emt 0:13:36]} Qa5 {[%emt 0:05:29]} 27. Nc2 {[%emt 0:07:47]} Rxa2 {[%emt 0:07:23]} 28. Rxa2 {[%emt 0:00:31]} Qxa2 {[%emt 0:00:08]} 29. Nxd4 {[%emt 0:00:09]} Qxf2+ {[%emt 0:00:21]} 30. Kxf2 {[%emt 0:00:17]} exd4 {[%emt 0:00:05]} 31. c5 {[%emt 0:00:59]} Be6 {[%emt 0:08:38]} 32. Ra1 {[%emt 0:01:51]} Rd8 {[%emt 0:03:27]} 33. Ke2 {[%emt 0:01:07]} Bc4+ {[%emt 0:04:19]} 34. Kd2 {[%emt 0:00:13]} f5 {[%emt 0:04:27]} 35. f4 {[%emt 0:07:05]} Ba6 {[%emt 0:06:55]} 36. exf5 {[%emt 0:05:47]} gxf5 {[%emt 0:01:35]} 37. Bxc6 {[%emt 0:00:23]} 1/2-1/2

[Event "Seniors-LEM-65 Sachsen-Anhalt 2024"]
[Site "Magdeburg"]
[Date "2024.07.03"]
[Round "3.19"]
[White "Klettke, Wolfgang"]
[Black "Kynast, Reinhard"]
[Result "1-0"]
[ECO "B22"]
[WhiteElo "2008"]
[BlackElo "1901"]
[Annotator "NA RC"]
[PlyCount "99"]
[EventDate "2024.06.25"]
[EventType "swiss"]
[EventCountry "GER"]
[SourceTitle "playchess.com"]
[Source "ChessBase"]
[SourceQuality "1"]
[TimeControl "40/5400+30:1800+30"]

1. e4 {[%emt 0:00:04]} c5 {[%emt 0:00:05]} 2. c3 {[%emt 0:04:05]} Nf6 {[%emt 0:00:56]} 3. e5 {[%emt 0:00:12]} Nd5 {[%emt 0:00:13]} 4. d4 {[%emt 0:00:43]} cxd4 {[%emt 0:00:25]} 5. cxd4 {[%emt 0:00:02]} d6 {[%emt 0:01:06]} 6. Nf3 {[%emt 0:03:10]} Nc6 {[%emt 0:00:50]} 7. exd6 {[%emt 0:02:22]} e6 {[%emt 0:03:37]} 8. Nc3 {[%emt 0:00:36]} Nxc3 {[%emt 0:02:21]} 9. bxc3 {[%emt 0:00:03]} Bxd6 {[%emt 0:00:32]} 10. Bd3 {[%emt 0:03:05]} O-O {[%emt 0:00:41]} 11. O-O {[%emt 0:00:09]} b6 {[%emt 0:01:23] B22: Sicilian: 2 c3.} 12. Qe2 {[%emt 0:02:08]} g6 {[%emt 0:04:52]} 13. h4 {[%emt 0:03:56]} Re8 {[%emt 0:07:06]} 14. h5 {[%emt 0:03:51]} Qc7 {[%emt 0:09:21]} 15. Ng5 {[%emt 0:03:53]} Kg7 {[%emt 0:15:13]} 16. Qf3 {[%emt 0:16:16]} Bb7 {[%emt 0:08:14]} 17. Ne4 {[%emt 0:06:51]} Be7 {[%emt 0:03:35]} 18. Qe3 {[%emt 0:03:28]} Kg8 {[%emt 0:08:56] [#]} (18... Kh8 {was called for.} 19. Re1 e5) 19. Qh6 $1 {[%emt 0:04:31]} f5 {[%emt 0:06:13]} 20. hxg6 {[%emt 0:01:41]} Bf8 {[%emt 0:00:42]} 21. Nf6+ {[%emt 0:00:57]} Kh8 {[%emt 0:00:52]} 22. Nxe8 {[%emt 0:00:12]} Rxe8 {[%emt 0:01:00]} 23. Qh5 {[%emt 0:01:47]} Qg7 {[%emt 0:02:33]} 24. Qxh7+ {[%emt 0:00:20]} Qxh7 {[%emt 0:00:21]} 25. gxh7 {[%emt 0:00:02]} Kxh7 {[%emt 0:00:29]} 26. Re1 {[%emt 0:00:15]} Nd8 {[%emt 0:02:22]} 27. Bxf5+ {[%emt 0:00:27]} Kg7 {[%emt 0:00:19]} 28. Be4 {[%emt 0:00:02]} Ba6 {[%emt 0:00:22]} 29. Bf4 {[%emt 0:00:28]} Bc4 {[%emt 0:01:10]} 30. Re3 {[%emt 0:00:32]} Kf6 {[%emt 0:01:00]} 31. Be5+ {[%emt 0:00:46]} Kf7 {[%emt 0:01:16]} 32. f4 {[%emt 0:00:04]} Bg7 {[%emt 0:00:41]} 33. Kf2 {[%emt 0:00:04]} Rh8 {[%emt 0:00:39]} 34. Rh3 {[%emt 0:00:31]} Rxh3 {[%emt 0:00:54]} 35. gxh3 {[%emt 0:00:02]} Bh6 {[%emt 0:01:09]} 36. a4 {[%emt 0:00:42]} a6 {[%emt 0:00:25]} 37. Ke3 {[%emt 0:00:54]} Ke7 {[%emt 0:01:43]} 38. Rb1 {[%emt 0:00:37]} b5 {[%emt 0:00:17]} 39. axb5 {[%emt 0:00:02]} axb5 {[%emt 0:00:24]} 40. Ra1 {[%emt 0:00:11]} Nf7 {[%emt 0:03:02]} 41. Ra7+ {[%emt 0:30:38]} Kf8 {[%emt 0:30:25]} 42. Kf3 $18 {[%emt 0:01:37]} Bb3 {[%emt 0:01:40]} 43. Bg6 {[%emt 0:01:12]} Bd5+ {[%emt 0:00:47]} 44. Kg3 {[%emt 0:00:05]} Nxe5 {[%emt 0:01:24]} 45. dxe5 {[%emt 0:00:04]} Kg8 {[%emt 0:00:44]} 46. Bd3 {[%emt 0:00:02]} Bc6 {[%emt 0:00:34]} 47. Rc7 {[%emt 0:00:02]} Be8 {[%emt 0:00:17]} 48. Rb7 {[%emt 0:00:17]} Bc6 {[%emt 0:00:16]} 49. Rb8+ {[%emt 0:00:15]} Kf7 {[%emt 0:00:15]} 50. Bxb5 {[%emt 0:00:01]} 1-0

[Event "Seniors-LEM-65 Sachsen-Anhalt 2024"]
[Site "Magdeburg"]
[Date "2024.07.03"]
[Round "3.20"]
[White "Schmieder, Siegfried"]
[Black "Waltenberger, Udo"]
[Result "0-1"]
[ECO "B23"]
[WhiteElo "1906"]
[BlackElo "1993"]
[Annotator "NA RC"]
[PlyCount "104"]
[EventDate "2024.06.25"]
[EventType "swiss"]
[EventCountry "GER"]
[SourceTitle "playchess.com"]
[Source "ChessBase"]
[SourceQuality "1"]
[TimeControl "40/5400+30:1800+30"]

1. e4 {[%emt 0:01:31]} c5 {[%emt 0:00:07]} 2. Nc3 {[%emt 0:00:08]} Nc6 {[%emt 0:00:03]} 3. Bb5 {[%emt 0:00:29]} g6 {[%emt 0:00:05]} 4. Bxc6 {[%emt 0:01:48]} bxc6 {[%emt 0:00:03]} 5. d3 {[%emt 0:01:11]} Bg7 {[%emt 0:00:07]} 6. f4 {[%emt 0:04:49]} d6 {[%emt 0:00:58]} 7. Nf3 {[%emt 0:01:35]} Nf6 {[%emt 0:00:04]} 8. O-O {[%emt 0:00:51]} O-O {[%emt 0:00:03]} 9. Bd2 {[%emt 0:00:37]} Rb8 {[%emt 0:00:31]} 10. Rb1 {[%emt 0:00:19]} Ne8 {[%emt 0:01:00]} 11. Qe1 {[%emt 0:01:05]} Nc7 {[%emt 0:00:34] B23: Closed Sicilian: Lines without g3.} 12. Kh1 {[%emt 0:06:48]} Nb5 {[%emt 0:03:25]} 13. Ne2 {[%emt 0:09:10]} Nd4 {[%emt 0:06:32]} 14. Nfxd4 {[%emt 0:10:03]} cxd4 {[%emt 0:00:05]} 15. Ng3 {[%emt 0:06:10]} e5 {[%emt 0:09:38]} 16. f5 {[%emt 0:01:37]} Qh4 {[%emt 0:07:28]} 17. Qc1 {[%emt 0:02:05]} Qe7 {[%emt 0:01:24]} 18. Bh6 {[%emt 0:01:28]} f6 {[%emt 0:00:13]} 19. h4 {[%emt 0:01:42]} Bxh6 {[%emt 0:01:11]} 20. Qxh6 {[%emt 0:00:10]} Qg7 {[%emt 0:00:08]} 21. Qd2 {[%emt 0:02:05]} Bd7 {[%emt 0:06:32]} 22. Rf3 {[%emt 0:02:25]} Rb7 {[%emt 0:01:46]} 23. Qf2 {[%emt 0:00:47]} (23. b3 $11 {keeps the balance.}) 23... Be8 {[%emt 0:03:40]} ({Better is} 23... Qh6 $17 24. h5 g5 (24... gxh5 25. Nf1 $17)) 24. b3 {[%emt 0:02:19]} Qh6 {[%emt 0:09:40]} 25. Nf1 {[%emt 0:01:41] [#]} g5 {[%emt 0:09:36]} (25... gxf5 $1 $17 26. Rg3+ Kh8 27. Qxf5 Bd7 (27... Qxh4+ 28. Kg1 $17)) 26. g4 {[%emt 0:03:15]} Qxh4+ {[%emt 0:04:27]} 27. Qxh4 {[%emt 0:00:15]} gxh4 {[%emt 0:00:02]} 28. Rh3 {[%emt 0:00:21]} Rg7 {[%emt 0:00:53]} 29. Rxh4 {[%emt 0:02:14]} Rg5 {[%emt 0:02:16]} 30. Nh2 {[%emt 0:05:51]} h5 {[%emt 0:02:10]} 31. Rg1 {[%emt 0:00:52]} Kg7 $1 {[%emt 0:01:34]} 32. Nf3 {[%emt 0:07:38]} Rxg4 {[%emt 0:00:03]} 33. Rhxg4+ {[%emt 0:00:22]} hxg4 {[%emt 0:00:04]} 34. Rxg4+ {[%emt 0:00:06]} Kh6 {[%emt 0:04:30]} 35. Rh4+ {[%emt 0:01:57]} (35. Rg2 $11) 35... Bh5 {[%emt 0:00:20]} 36. Kh2 {[%emt 0:01:49]} Rg8 {[%emt 0:04:57]} 37. Kh3 {[%emt 0:00:57]} Rg7 {[%emt 0:05:51]} 38. Kh2 {[%emt 0:02:56]} Rg4 {[%emt 0:01:11]} 39. Rxg4 {[%emt 0:01:00]} Bxg4 {[%emt 0:00:05]} 40. Kg3 $17 {[%emt 0:00:44]} Bh5 {[%emt 0:05:24]} 41. b4 {[%emt 0:30:35]} Bf7 {[%emt 0:31:39]} 42. a3 {[%emt 0:00:55]} d5 {[%emt 0:02:29]} 43. Nd2 {[%emt 0:05:47]} Kg7 {[%emt 0:05:06]} 44. Kf2 {[%emt 0:02:05]} Kf8 {[%emt 0:00:16]} 45. Ke1 {[%emt 0:01:30]} Ke7 {[%emt 0:00:11]} 46. Nf3 {[%emt 0:00:34]} dxe4 {[%emt 0:04:05]} 47. dxe4 {[%emt 0:00:10]} Kd6 {[%emt 0:00:06]} 48. Kd2 {[%emt 0:00:55]} c5 {[%emt 0:00:00]} 49. c3 {[%emt 0:00:00]} Bh5 {[%emt 0:00:00]} 50. Ne1 {[%emt 0:00:00]} c4 {[%emt 0:00:00]} 51. cxd4 {[%emt 0:00:00]} exd4 {[%emt 0:00:00]} 52. Nc2 {[%emt 0:00:00]} Ke5 {[%emt 0:00:00]} 0-1

[Event "Seniors-LEM-65 Sachsen-Anhalt 2024"]
[Site "Magdeburg"]
[Date "2024.07.03"]
[Round "3.21"]
[White "Stummeyer, Dieter"]
[Black "Schmidt, Gerhard"]
[Result "1/2-1/2"]
[ECO "B03"]
[WhiteElo "1884"]
[BlackElo "2112"]
[Annotator "RC"]
[PlyCount "81"]
[EventDate "2024.06.25"]
[EventType "swiss"]
[EventCountry "GER"]
[SourceTitle "playchess.com"]
[Source "ChessBase"]
[SourceQuality "1"]
[TimeControl "40/5400+30:1800+30"]

1. e4 {[%emt 1:31:00]} Nf6 {[%emt 1:31:00]} 2. e5 {[%emt 0:00:30]} Nd5 3. c4 Nb6 {[%emt 0:01:00]} 4. d4 {[%emt 0:01:00]} d6 {[%emt 0:00:30]} 5. f4 {[%emt 0:00:30]} dxe5 {[%emt 0:00:30]} 6. fxe5 {[%emt 0:00:30]} c5 {[%emt 0:00:30]} 7. d5 {[%emt 0:00:30]} e6 {[%emt 0:00:30]} 8. Nc3 {[%emt 0:00:30]} exd5 {[%emt 0:00:30]} 9. cxd5 {[%emt 0:00:30]} c4 {[%emt 0:00:30]} 10. Nf3 {[%emt 0:00:30]} Bb4 {[%emt 0:00:30]} 11. Bxc4 {[%emt 0:00:30]} Nxc4 {[%emt 0:00:30]} 12. Qa4+ {[%emt 0:00:30]} Nd7 {[%emt 0:00:30]} 13. Qxb4 {[%emt 0:00:30]} Ncxe5 {[%emt 0:00:30]} 14. O-O {[%emt 0:00:30]} f6 {[%emt 0:00:30]} 15. Be3 {[%emt 0:00:30]} a5 {[%emt 0:00:30]} 16. Qd4 {[%emt 0:00:30]} O-O {[%emt 0:00:30]} 17. Rac1 {[%emt 0:00:30]} Nxf3+ {[%emt 0:00:30]} 18. Rxf3 Ne5 {[%emt 0:00:30]} 19. Rff1 {[%emt 0:01:00]} Bd7 {[%emt 0:00:30]} 20. Bf4 {[%emt 0:00:30]} Ng6 {[%emt 0:00:30]} 21. Bg3 {[%emt 0:00:30]} Re8 {[%emt 0:00:30]} 22. Ne4 {[%emt 0:00:30]} Bb5 {[%emt 0:00:30]} 23. Rfe1 {[%emt 0:00:30]} Ne5 {[%emt 0:00:30]} 24. Nc3 {[%emt 0:00:30]} Ba6 {[%emt 0:00:30]} 25. Bxe5 {[%emt 0:00:30]} fxe5 {[%emt 0:00:30]} 26. Rxe5 Rxe5 {[%emt 0:00:30]} 27. Qxe5 Qb6+ 28. Kh1 {[%emt 0:01:30]} Qxb2 {[%emt 0:01:00]} 29. Re1 Rf8 {[%emt 0:00:30]} 30. Qe6+ {[%emt 0:01:00]} Kh8 {[%emt 0:00:30]} 31. Ne4 {[%emt 0:00:30]} h6 {[%emt 0:00:30]} 32. Qe7 {[%emt 0:00:30]} Kg8 33. Qe6+ {[%emt 0:00:30]} Kh8 {[%emt 0:01:00]} 34. d6 {[%emt 0:00:30]} Qe2 {[%emt 0:00:30]} 35. Ng3 {[%emt 0:00:30]} Qxe6 36. Rxe6 {[%emt 0:00:30]} Rd8 {[%emt 0:01:00]} 37. Nf5 {[%emt 0:00:30]} Bc4 {[%emt 0:00:30]} 38. Re7 {[%emt 0:00:30]} Kg8 {[%emt 0:00:30]} 39. Rxg7+ {[%emt 0:00:30]} Kf8 40. Rxb7 {[%emt 0:00:30]} Be6 {[%emt 0:01:00]} 41. Nd4 {[%emt 0:30:30]} 1/2-1/2